bitfinex/quotes_SOLUSD_20251106
["timestamp","ask_amount","ask_price","bid_price","bid_amount"]
[1762447379057,6.98260234,154.47,154.37,8.98260233]
[1762447379257,8.58145495,154.51,154.26,0.64825619]
[1762447379258,6.98260234,154.38,154.3,1.99999999]
[1762447379557,50.0,154.46,154.26,0.65]
[1762447379558,4.61716195,154.37,154.31,1.99999999]
[1762447379759,50.0,154.5,154.31,1.99999999]
[1762447379760,4.61716195,154.36,154.31,1.99999999]
[1762447380068,4.61716195,154.35,154.34,6.98260234]
[1762447380273,4.61716195,154.35,154.34,15.72260234]
[1762447380579,3.89716195,154.35,154.34,18.37260233]
[1762447380784,3.89716195,154.35,154.34,9.63260233]
[1762447380990,1.73716195,154.35,154.34,8.98260233]
[1762447381284,1.73716195,154.35,154.34,17.72260233]
[1762447381583,1e-08,154.35,154.34,1.99999999]
[1762447381754,1e-08,154.35,154.34,17.72260233]
[1762447382173,0.68,154.48,154.41,1.99999999]
[1762447382369,0.68,154.48,154.44,6.98260234]
[1762447382584,0.68,154.48,154.45,8.74]
[1762447382787,0.68,154.48,154.45,6.98260234]
[1762447383088,20.592,154.51,154.46,8.74]
[1762447383267,0.68,154.5,154.47,8.74]
[1762447383462,0.68,154.57,154.48,6.98260234]
[1762447383770,0.68,154.57,154.47,8.74]
[1762447383771,0.68,154.57,154.52,6.98260234]
[1762447383974,0.68,154.57,154.53,15.72260234]
[1762447384300,0.68,154.57,154.56,6.98260234]
[1762447384588,0.68,154.57,154.56,8.74]
[1762447384761,0.68,154.57,154.55,6.98260234]
[1762447385158,0.68,154.57,154.53,6.4711275]
[1762447385374,0.68,154.57,154.49,6.47280934]
[1762447385583,20.592,154.53,154.5,8.72]
[1762447385791,0.68,154.57,154.52,6.98260234]
[1762447385967,21.272,154.56,154.53,6.98260234]
[1762447386166,76.26369717,154.7,154.53,6.98260234]
[1762447386167,0.68,154.65,154.55,6.98260234]
[1762447386387,0.68,154.65,154.59,6.98260234]
[1762447386685,0.68,154.65,154.61,6.98260234]
[1762447386885,0.68,154.65,154.6,8.72]
[1762447387087,20.592,154.63,154.57,1.99999999]
[1762447387264,21.272,154.63,154.56,6.46974701]
[1762447387465,21.272,154.62,154.55,1.99999999]
[1762447387672,4.17196182,154.61,154.57,6.98260234]
[1762447387868,4.85196182,154.61,154.57,8.7]
[1762447388100,20.592,154.56,154.49,1.99999999]
[1762447388269,20.592,154.51,154.47,15.68260234]
[1762447388467,20.592,154.51,154.48,8.72]
[1762447388773,4.85021203,154.5,154.48,8.72]
[1762447389096,4.17021203,154.49,154.45,6.98260234]
[1762447389288,4.17021203,154.48,154.47,6.98260234]
[1762447389480,4.17021203,154.48,154.47,8.72]
[1762447389684,4.17021203,154.48,154.47,15.70260234]
[1762447389872,4.17021203,154.48,154.45,1.99999999]
[1762447390076,4.85021203,154.47,154.46,8.72]
[1762447390395,4.17021203,154.47,154.46,6.98260234]
[1762447390580,4.17021203,154.47,154.46,15.68260234]
[1762447390781,4.17021203,154.47,154.46,8.98260233]
[1762447391000,4.17021203,154.47,154.46,17.68260233]
[1762447391388,4.17021203,154.47,154.44,6.98260234]
[1762447391389,10.05556316,154.47,154.44,6.98260234]
[1762447391592,5.20543429,154.47,154.46,8.7]
[1762447391906,4.16426435,154.47,154.44,15.68260234]
[1762447392091,5.20548057,154.49,154.46,8.98260233]
[1762447392410,5.20548057,154.5,154.47,24.15609604]
[1762447392578,4.16532791,154.49,154.47,8.4734937]
[1762447392779,4.16532791,154.49,154.44,16.18670734]
[1762447392780,5.20548057,154.5,154.46,1.99999999]
[1762447393001,4.84543942,154.49,154.45,1.99999999]
[1762447393183,5.20548057,154.47,154.46,6.98260234]
[1762447393386,9.37091999,154.47,154.46,17.68260233]
[1762447393581,10.41158034,154.52,154.46,17.68260233]
[1762447393582,0.68,154.52,154.46,17.68260233]
[1762447393784,4.1666515,154.51,154.49,6.98260234]
[1762447393983,4.1666515,154.5,154.49,6.98260234]
[1762447394182,4.1666515,154.5,154.49,8.98260233]
[1762447394380,4.1666515,154.5,154.46,1.99999999]
[1762447394689,4.8466515,154.49,154.45,1.99999999]
[1762447394881,4.8466515,154.49,154.36,6.98260234]
[1762447394882,9.37213207,154.48,154.41,1.99999999]
[1762447395082,9.37213207,154.48,154.36,16.19588383]
[1762447395083,25.79748057,154.44,154.4,10.69999999]
[1762447395306,4.1666515,154.43,154.4,17.68260233]
[1762447395506,4.8466515,154.43,154.39,6.98260234]
[1762447395715,6.98260234,154.4,154.36,1.99999999]
[1762447395892,38.68803954,154.39,154.32,6.98260234]
[1762447396083,5.2104654,154.36,154.32,10.71999999]
[1762447396283,4.1666515,154.35,154.32,8.72]
[1762447396582,5.2104654,154.33,154.32,8.72]
[1762447396783,4.1666515,154.33,154.29,8.48096962]
[1762447396984,5.20578802,154.3,154.29,6.98260234]
[1762447397190,5.20578802,154.3,154.29,1.99999999]
[1762447397191,9.37243952,154.3,154.29,1.99999999]
[1762447397399,9.37243952,154.3,154.26,1.99999999]
[1762447397400,9.36819381,154.3,154.26,1.99999999]
[1762447397600,5.20154231,154.3,154.29,1.99999999]
[1762447397804,0.68,154.29,154.25,1.99999999]
[1762447398016,4.16191292,154.28,154.27,6.98260234]
[1762447398326,6.9467857,154.34,154.31,1.99999999]
[1762447398531,5.19981196,154.34,154.31,6.48014335]
[1762447398813,0.68,154.34,154.29,8.48097615]
[1762447399013,0.68,154.34,154.32,10.69999999]
[1762447399184,0.68,154.34,154.31,6.98260234]
[1762447399389,0.68,154.34,154.28,1.99999999]
[1762447399694,9.78882769,154.32,154.27,15.68260234]
[1762447399920,20.592,154.29,154.25,1.99999999]
[1762447400408,20.592,154.24,154.19,3.6395812]
[1762447400611,5.19981196,154.23,154.19,3.6395812]
[1762447400911,5.19981196,154.22,154.19,3.6395812]
[1762447401215,0.68,154.22,154.19,10.12498887]
[1762447401387,5.87981196,154.24,154.21,6.98260234]
[1762447401588,6.9467857,154.27,154.21,1.99999999]
[1762447401589,0.68,154.23,154.21,1.99999999]
[1762447401791,20.592,154.26,154.23,1.99999999]
[1762447401792,5.87981196,154.26,154.23,1.99999999]
[1762447402024,0.68,154.26,154.25,6.98260234]
[1762447402190,0.68,154.26,154.18,0.1]
[1762447402394,25.76432248,154.22,154.18,0.1]
[1762447402588,5.17232248,154.23,154.18,6.585839]
[1762447402789,5.17232248,154.24,154.21,6.98260234]
[1762447403018,20.592,154.24,154.21,8.8]
[1762447403426,20.592,154.24,154.18,6.585839]
[1762447403597,20.592,154.24,154.19,6.98260234]
[1762447403799,20.592,154.24,154.2,15.78260234]
[1762447404100,5.17232248,154.26,154.21,8.8]
[1762447404302,20.592,154.23,154.2,15.78260234]
[1762447404501,5.84232248,154.26,154.2,22.26755926]
[1762447404700,5.17232248,154.27,154.2,15.28495692]
[1762447404904,5.17232248,154.31,154.26,6.98260234]
[1762447405207,5.17232248,154.32,154.28,6.98260234]
[1762447405391,12.15492482,154.32,154.21,0.66]
[1762447405589,20.592,154.25,154.13,15.76]
[1762447405810,20.592,154.24,154.17,0.66]
[1762447406091,20.592,154.24,154.19,8.82]
[1762447406402,20.592,154.24,154.19,15.80260234]
[1762447406631,20.592,154.24,154.2,13.46768664]
[1762447406989,26.43432248,154.27,154.2,6.4850843]
[1762447407189,20.592,154.24,154.2,6.4850843]
[1762447407394,20.592,154.23,154.18,6.58564404]
[1762447407605,20.592,154.23,154.19,15.78260234]
[1762447407811,20.592,154.23,154.2,8.8]
[1762447408121,20.592,154.24,154.21,8.8]
[1762447408319,20.592,154.24,154.18,7.24564404]
[1762447408320,20.592,154.24,154.18,0.1]
[1762447408494,20.592,154.16,154.08,0.66]
[1762447408827,20.592,154.16,154.12,6.98260234]
[1762447408997,20.592,154.16,154.13,15.78260234]
[1762447409197,20.592,154.16,154.13,8.8]
[1762447409532,20.592,154.16,154.1,0.66]
[1762447409696,20.592,154.16,154.1,8.8]
[1762447409890,20.592,154.15,154.1,8.8]
[1762447410315,11.10445474,154.14,154.08,0.66]
[1762447410508,11.10445474,154.14,154.09,8.8]
[1762447410710,6.98260234,154.11,154.02,16.89128124]
[1762447410908,6.98260234,154.07,154.01,6.49277816]
[1762447411128,20.592,154.06,154.0,77.69340482]
[1762447411293,0.62,154.14,154.05,6.98260234]
[1762447411493,27.57460234,154.13,154.01,0.66]
[1762447411696,27.57460234,154.13,154.02,8.82]
[1762447411891,0.62,154.17,154.03,8.82]
[1762447412115,4.11315498,154.16,154.01,1.30930848]
[1762447412319,20.592,154.13,154.03,0.64922417]
[1762447412519,20.592,154.13,154.08,6.49008555]
[1762447412695,20.592,154.13,154.06,8.8]
[1762447412892,20.592,154.13,154.07,13.40672658]
[1762447413124,5.22672658,154.16,154.09,4.60672658]
[1762447413336,4.11391938,154.19,154.12,4.60672658]
[1762447413496,4.11391938,154.19,154.1,8.8]
[1762447413497,4.11391938,154.19,154.13,4.60672658]
[1762447413694,5.17232248,154.23,154.18,4.60672658]
[1762447413695,4.11391938,154.22,154.18,4.60672658]
[1762447413922,0.62,154.24,154.19,4.60672658]
[1762447413923,4.73391938,154.24,154.19,4.60672658]
[1762447414129,4.11391938,154.25,154.21,4.60672658]
[1762447414302,4.11391938,154.26,154.22,8.8]
[1762447414493,4.11391938,154.25,154.22,8.8]
[1762447414695,4.11391938,154.26,154.22,15.81650976]
[1762447414905,4.11391938,154.26,154.22,16.47650976]
[1762447415192,4.11391938,154.26,154.2,6.48506807]
[1762447415193,24.70591938,154.25,154.23,8.8]
[1762447415423,4.11391938,154.24,154.23,8.8]
[1762447415722,4.11391938,154.24,154.18,7.67650976]
[1762447415723,20.592,154.23,154.18,7.67650976]
[1762447415920,20.592,154.17,154.09,0.66]
[1762447416097,4.11990233,154.16,154.1,8.8]
[1762447416301,11.13641209,154.16,154.1,7.67650976]
[1762447416506,24.71190233,154.16,154.12,6.48845055]
[1762447416700,11.79732168,154.16,154.13,8.8]
[1762447417012,5.14987791,154.22,154.13,15.81650976]
[1762447417222,4.12505737,154.21,154.13,8.8]
[1762447417402,7.01650976,154.14,154.05,0.71]
[1762447417607,5.14987791,154.19,154.06,8.8]
[1762447417608,7.01650976,154.11,154.06,8.8]
[1762447417909,9.78882769,154.15,154.05,7.72650976]
[1762447417910,4.12505737,154.12,154.05,0.71]
[1762447418113,4.12505737,154.11,154.03,7.01650976]
[1762447418435,4.12505737,154.1,154.03,7.72650976]
[1762447418599,4.12505737,154.09,154.04,15.29148529]
[1762447418802,4.12505737,154.12,154.05,15.79650976]
[1762447419003,4.12505737,154.12,154.0,71.2]
[1762447419004,20.592,154.04,154.0,71.2]
[1762447419326,4.12505737,154.03,154.0,71.2]
[1762447419534,21.36999999,154.12,154.02,7.01650976]
[1762447419535,4.12505737,154.06,154.02,7.01650976]
[1762447419719,20.592,154.11,154.05,7.01650976]
[1762447420039,24.72543508,154.1,154.01,1.35930848]
[1762447420214,20.592,154.07,154.02,8.8]
[1762447420519,9.28331299,154.09,154.02,7.01650976]
[1762447420520,24.72543508,154.06,154.02,7.01650976]
[1762447420724,4.13343508,154.05,154.02,6.49264544]
[1762447421031,5.14987791,154.13,154.04,7.01650976]
[1762447421230,4.13609592,154.12,154.03,0.71]
[1762447421409,4.13609592,154.11,154.08,7.01650976]
[1762447421740,4.13609592,154.13,154.1,7.01650976]
[1762447421931,4.14416262,154.16,154.09,8.8]
[1762447422101,4.14416262,154.15,154.11,7.01650976]
[1762447422302,32.75838767,154.18,154.09,9.51]
[1762447422303,4.14416262,154.14,154.12,8.8]
[1762447422536,4.14416262,154.14,154.02,6.49264544]
[1762447422537,20.592,154.11,154.06,0.71]
[1762447422735,4.14416262,154.1,154.07,8.8]
[1762447423018,4.14416262,154.09,154.08,8.8]
[1762447423216,4.14416262,154.12,154.08,8.8]
[1762447423520,4.13796193,154.11,154.09,9.49]
[1762447423841,5.17245242,154.18,154.1,7.99442279]
[1762447424036,5.17245242,154.18,154.13,7.99442279]
[1762447424037,4.13862763,154.17,154.13,7.99442279]
[1762447424255,4.13862763,154.16,154.15,7.99442279]
[1762447424735,4.13862763,154.16,154.15,8.70442279]
[1762447424933,5.17245242,154.21,154.15,8.70442279]
[1762447425107,5.17245242,154.21,154.16,0.71]
[1762447425312,25.76445242,154.22,154.16,0.71]
[1762447425516,20.592,154.22,154.17,16.79442279]
[1762447425740,7.99442279,154.23,154.18,8.8]
[1762447426051,7.99442279,154.2,154.12,0.71]
[1762447426259,5.17245242,154.2,154.12,0.71]
[1762447426553,28.58642279,154.2,154.14,7.99442279]
[1762447426717,20.592,154.2,154.16,7.99442279]
[1762447426916,25.76445242,154.2,154.16,7.99442279]
[1762447427244,25.76445242,154.2,154.16,8.78]
[1762447427449,20.592,154.2,154.15,7.99442279]
[1762447427616,20.592,154.2,154.14,8.70442279]
[1762447427816,25.76445242,154.2,154.14,8.70442279]
[1762447428036,33.75887521,154.2,154.14,8.70442279]
[1762447428236,25.76445242,154.2,154.15,7.99442279]
[1762447428555,5.17245242,154.23,154.19,7.99442279]
[1762447428851,10.41158034,154.29,154.16,8.76]
[1762447428852,5.17245242,154.24,154.2,7.99442279]
[1762447429057,5.17245242,154.24,154.17,6.48634624]
[1762447429058,7.99442279,154.23,154.17,40.16663463]
[1762447429355,5.17245242,154.21,154.18,8.76]
[1762447429550,20.592,154.21,154.19,8.76]
[1762447429717,20.592,154.21,154.18,7.99442279]
[1762447430056,25.76445242,154.21,154.17,14.48076903]
[1762447430219,28.58642279,154.21,154.19,8.76]
[1762447430419,20.592,154.21,154.18,7.99442279]
[1762447430636,20.592,154.21,154.1,9.78882769]
[1762447430637,5.19446099,154.24,154.2,14.47931691]
[1762447430833,5.19446099,154.24,154.2,6.48489412]
[1762447431044,5.19446099,154.24,154.23,7.99442279]
[1762447431243,5.19446099,154.26,154.23,8.76]
[1762447431560,6.9467857,154.26,154.24,16.75442279]
[1762447431764,5.20560068,154.27,154.25,7.99442279]
[1762447432070,5.20560068,154.27,154.26,8.76]
[1762447432235,5.20560068,154.27,154.25,0.71]
[1762447432435,6.9467857,154.28,154.22,0.67]
[1762447432647,6.9467857,154.28,154.24,7.99442279]
[1762447432840,6.9467857,154.28,154.25,7.99442279]
[1762447433045,6.9467857,154.28,154.26,7.99442279]
[1762447433357,6.9467857,154.28,154.27,7.99442279]
[1762447433666,8.61442279,154.31,154.25,7.99442279]
[1762447433846,0.62,154.31,154.22,6.48421825]
[1762447434057,7.5667857,154.35,154.3,7.99442279]
[1762447434363,0.62,154.35,154.31,8.74]
[1762447434563,7.5667857,154.39,154.33,7.99442279]
[1762447434739,7.5667857,154.39,154.32,6.47964363]
[1762447434740,15.56120849,154.39,154.32,6.47964363]
[1762447434939,0.62,154.39,154.33,7.99442279]
[1762447435157,20.592,154.38,154.34,7.99442279]
[1762447435371,0.62,154.39,154.34,7.99442279]
[1762447435537,6.9467857,154.38,154.35,7.99442279]
[1762447435740,14.94120849,154.38,154.23,0.64838228]
[1762447435947,6.9467857,154.36,154.32,7.99442279]
[1762447436146,6.9467857,154.36,154.34,7.99442279]
[1762447436342,6.9467857,154.38,154.35,8.72]
[1762447436649,6.9467857,154.36,154.27,22.68749593]
[1762447436845,27.5387857,154.36,154.27,22.68749593]
[1762447437142,4.18998187,154.35,154.32,7.99442279]
[1762447437352,4.18998187,154.34,154.28,0.67]
[1762447437548,20.592,154.36,154.33,7.99442279]
[1762447437750,4.19643708,154.35,154.34,7.99442279]
[1762447437943,4.19643708,154.35,154.3,0.67]
[1762447438146,4.19643708,154.34,154.3,0.67]
[1762447438345,4.19643708,154.33,154.3,0.67]
[1762447438562,4.19643708,154.32,154.3,0.67]
[1762447438764,4.19643708,154.31,154.3,7.15088139]
[1762447439157,4.19643708,154.31,154.3,15.85088139]
[1762447439358,4.19643708,154.31,154.3,23.84530418]
[1762447439759,4.19643708,154.31,154.3,15.14530418]
[1762447439959,4.19643708,154.31,154.3,23.82530418]
[1762447440164,4.19643708,154.31,154.28,7.99442279]
[1762447440365,11.14322278,154.3,154.29,8.68]
[1762447440545,11.14322278,154.3,154.29,16.67442279]
[1762447440546,4.19643708,154.3,154.29,16.67442279]
[1762447440751,4.19643708,154.3,154.29,15.14572423]
[1762447440956,4.19643708,154.3,154.29,23.82572423]
[1762447441383,6.9467857,154.36,154.29,40.02897784]
[1762447441581,6.9467857,154.37,154.3,0.67]
[1762447441882,20.592,154.38,154.3,0.67]
[1762447441883,6.9467857,154.35,154.34,7.99442279]
[1762447442045,8.81442279,154.4,154.31,8.68]
[1762447442046,6.9467857,154.37,154.31,8.68]
[1762447442245,6.9467857,154.38,154.36,7.99442279]
[1762447442467,6.9467857,154.38,154.32,0.67]
[1762447442668,6.9467857,154.38,154.35,6.47878198]
[1762447442871,6.9467857,154.38,154.34,14.47359124]
[1762447443246,6.9467857,154.37,154.35,8.66]
[1762447443448,20.592,154.33,154.26,0.67]
[1762447443671,6.9467857,154.32,154.27,16.65442279]
[1762447443846,6.9467857,154.31,154.28,0.67]
[1762447444050,6.9467857,154.36,154.3,7.99442279]
[1762447444245,6.9467857,154.38,154.35,7.99442279]
[1762447444446,0.2,154.4,154.31,0.64804614]
[1762447444447,0.2,154.4,154.37,7.99442279]
[1762447444770,0.2,154.4,154.38,8.66]
[1762447444948,0.2,154.4,154.39,23.13152622]
[1762447445272,7.1467857,154.4,154.37,8.66]
[1762447445480,0.2,154.4,154.39,7.99442279]
[1762447445766,0.2,154.4,154.39,8.66442279]
[1762447445985,6.9467857,154.49,154.4,0.67]
[1762447446146,6.9467857,154.54,154.48,7.99442279]
[1762447446342,6.9467857,154.56,154.49,8.66]
[1762447446566,6.9467857,154.57,154.52,7.99442279]
[1762447446766,6.9467857,154.57,154.52,6.47148574]
[1762447446965,0.7,154.58,154.53,8.66]
[1762447447270,6.9467857,154.6,154.53,7.99442279]
[1762447447473,7.99442279,154.6,154.49,0.67]
[1762447447772,8.69442279,154.59,154.49,0.67]
[1762447448084,20.592,154.57,154.54,7.99442279]
[1762447448279,0.7,154.59,154.49,0.67]
[1762447448451,29.28642279,154.59,154.54,8.66]
[1762447448647,29.28642279,154.59,154.5,7.99442279]
[1762447448648,7.99442279,154.56,154.5,7.99442279]
[1762447448955,7.99442279,154.56,154.48,0.67]
[1762447449303,20.592,154.58,154.54,7.99442279]
[1762447449477,20.592,154.56,154.5,0.67]
[1762447449780,20.592,154.58,154.52,7.99442279]
[1762447449965,20.592,154.58,154.53,7.99442279]
[1762447450166,20.592,154.58,154.55,7.99442279]
[1762447450367,6.9467857,154.65,154.54,8.66]
[1762447450571,7.99442279,154.61,154.54,8.66]
[1762447450752,20.592,154.61,154.57,7.99442279]
[1762447451077,7.99442279,154.6,154.56,8.64]
[1762447451280,7.99442279,154.61,154.56,8.64]
[1762447451459,7.99442279,154.61,154.57,8.64]
[1762447451665,7.99442279,154.64,154.58,7.99442279]
[1762447451857,7.6467857,154.67,154.57,9.31]
[1762447452175,7.6467857,154.67,154.62,7.99442279]
[1762447452176,3.38078053,154.67,154.62,7.99442279]
[1762447452379,0.7,154.69,154.61,8.64]
[1762447452753,0.7,154.69,154.61,9.31]
[1762447452952,20.592,154.68,154.61,8.64]
[1762447453155,7.99442279,154.66,154.61,8.14]
[1762447453584,7.99442279,154.66,154.62,0.67]
[1762447454068,0.7,154.69,154.58,0.67]
[1762447454069,4.14188298,154.68,154.58,0.67]
[1762447454375,7.99442279,154.62,154.57,0.67]
[1762447454577,7.99442279,154.61,154.57,0.67]
[1762447454780,20.592,154.65,154.57,15.75947082]
[1762447455167,7.99442279,154.63,154.57,23.75389361]
[1762447455356,7.99442279,154.63,154.57,39.9277954]
[1762447455556,7.99442279,154.62,154.57,9.29]
[1762447455775,20.592,154.65,154.57,15.08950342]
[1762447456095,20.592,154.65,154.55,9.29]
[1762447456096,7.99442279,154.6,154.55,9.29]
[1762447456262,20.592,154.63,154.53,8.6]
[1762447456455,21.292,154.63,154.52,7.99442279]
[1762447456663,7.99442279,154.56,154.52,0.67]
[1762447457016,7.99442279,154.56,154.53,8.6]
[1762447457366,7.99442279,154.54,154.49,7.14288221]
[1762447457563,7.99442279,154.53,154.49,7.14288221]
[1762447457754,7.99442279,154.53,154.49,9.27]
[1762447457983,7.99442279,154.54,154.5,0.67]
[1762447458151,7.99442279,154.56,154.5,8.66442279]
[1762447458356,7.99442279,154.55,154.51,8.6]
[1762447458758,7.99442279,154.55,154.52,6.47165415]
[1762447458963,9.78882769,154.63,154.52,15.13607694]
[1762447459258,25.42422537,154.62,154.53,0.67]
[1762447459477,7.99442279,154.59,154.53,8.66442279]
[1762447459676,7.99442279,154.57,154.53,0.67]
[1762447459871,7.99442279,154.56,154.53,0.67]
[1762447460083,7.99442279,154.54,154.5,0.67]
[1762447460267,7.99442279,154.51,154.5,8.58]
[1762447460584,4.13222537,154.58,154.47,16.85437221]
[1762447460585,25.42422537,154.58,154.47,16.85437221]
[1762447460884,20.592,154.55,154.49,30.64961082]
[1762447461102,16.16865511,154.63,154.49,30.64961082]
[1762447461103,7.99442279,154.57,154.5,0.64724919]
[1762447461377,0.7,154.6,154.5,0.67]
[1762447461686,4.13099405,154.62,154.54,7.99442279]
[1762447461856,4.83205375,154.66,154.56,7.99442279]
[1762447462060,7.99442279,154.63,154.52,0.67]
[1762447462285,4.83205375,154.67,154.55,7.99442279]
[1762447462505,0.7,154.67,154.53,9.22712353]
[1762447462669,0.7,154.67,154.58,7.99442279]
[1762447462985,0.7,154.67,154.59,6.46872372]
[1762447463169,0.7,154.67,154.59,23.29053302]
[1762447463481,7.99442279,154.63,154.6,0.65]
[1762447463682,7.99442279,154.62,154.6,9.23]
[1762447463882,7.99442279,154.62,154.59,22.64053302]
[1762447464187,20.592,154.67,154.6,0.65]
[1762447464376,7.99442279,154.62,154.6,0.65]
[1762447464766,22.75003623,154.71,154.6,0.65]
[1762447464767,10.52411236,154.71,154.61,6.46788694]
[1762447465086,4.81704821,154.7,154.61,31.19760429]
[1762447465301,4.13704821,154.71,154.62,0.65]
[1762447465585,0.2,154.74,154.64,7.99442279]
[1762447466103,0.2,154.74,154.69,7.99442279]
[1762447466394,0.2,154.74,154.7,9.21]
[1762447466760,8.19442279,154.74,154.71,0.65]
[1762447466960,0.2,154.74,154.71,7.11358266]
[1762447467186,8.19442279,154.74,154.71,15.67358266]
[1762447467487,8.19442279,154.74,154.72,0.65]
[1762447467488,0.2,154.74,154.72,0.65]
[1762447467694,7.99442279,154.73,154.69,0.65]
[1762447467866,0.2,154.74,154.7,0.65]
[1762447468062,8.19442279,154.74,154.7,0.65]
[1762447468281,0.2,154.74,154.7,8.64442279]
[1762447468464,0.2,154.74,154.71,8.56]
[1762447468671,0.2,154.74,154.71,9.21]
[1762447468872,0.2,154.74,154.73,6.4628708]
[1762447469067,8.19442279,154.74,154.69,0.65]
[1762447469277,0.2,154.74,154.69,0.65]
[1762447469566,0.2,154.74,154.69,17.18442279]
[1762447470069,0.2,154.74,154.72,7.99442279]
[1762447470471,0.2,154.74,154.73,0.65]
[1762447470666,0.2,154.74,154.73,8.64442279]
[1762447470902,7.13860311,154.84,154.73,8.64442279]
[1762447470903,7.13833039,154.84,154.74,22.618586]
[1762447471087,7.99442279,154.75,154.74,8.54]
[1762447471266,7.99442279,154.75,154.72,8.54]
[1762447471460,7.99442279,154.73,154.68,7.11495991]
[1762447471664,7.99442279,154.73,154.69,8.54]
[1762447471866,7.99442279,154.74,154.69,0.65]
[1762447472104,7.99442279,154.76,154.7,17.18442279]
[1762447472307,20.592,154.79,154.7,9.19]
[1762447472479,7.99442279,154.8,154.75,7.99442279]
[1762447472666,7.49442279,154.8,154.75,0.65]
[1762447472867,7.13833039,154.84,154.76,6.46161798]
[1762447472868,4.14908391,154.83,154.76,6.46161798]
[1762447473089,20.592,154.82,154.77,7.99442279]
[1762447473397,0.68,154.84,154.77,9.17]
[1762447473704,4.15114637,154.87,154.83,7.99442279]
[1762447473874,0.2,154.9,154.83,7.99442279]
[1762447474068,0.2,154.9,154.83,8.52]
[1762447474301,8.19442279,154.9,154.84,7.99442279]
[1762447474590,7.36732912,154.89,154.83,15.68732912]
[1762447474806,0.2,154.89,154.83,8.52]
[1762447475002,7.16732912,154.88,154.83,15.68732912]
[1762447475168,7.16732912,154.88,154.83,22.14600776]
[1762447475371,7.16732912,154.88,154.82,7.16732912]
[1762447475603,7.16732912,154.88,154.81,0.65]
[1762447475800,7.16732912,154.86,154.81,15.68732912]
[1762447475987,0.2,154.89,154.83,7.16732912]
[1762447476317,0.2,154.89,154.82,0.65]
[1762447476609,0.2,154.89,154.84,7.16732912]
[1762447476805,0.2,154.89,154.85,6.45786244]
[1762447476983,0.2,154.89,154.88,7.16732912]
[1762447477388,0.2,154.89,154.88,7.81732912]
[1762447477784,8.04732912,154.89,154.82,7.16732912]
[1762447477998,7.16732912,154.87,154.82,7.16732912]
[1762447478202,7.16732912,154.87,154.82,7.81732912]
[1762447478598,7.16732912,154.86,154.82,0.65]
[1762447479103,0.88,154.89,154.8,6.45975313]
[1762447479104,7.16732912,154.84,154.8,8.5]
[1762447479303,7.16732912,154.84,154.79,0.71]
[1762447479489,7.16732912,154.8,154.74,0.71]
[1762447479834,7.16732912,154.78,154.73,7.16732912]
[1762447480038,7.16732912,154.74,154.61,0.64678869]
[1762447480328,7.16732912,154.75,154.69,7.16732912]
[1762447480485,7.16732912,154.75,154.67,0.71]
[1762447480686,20.592,154.78,154.69,7.16732912]
[1762447480687,7.16732912,154.74,154.69,7.16732912]
[1762447480882,7.16732912,154.75,154.7,7.16732912]
[1762447481298,7.16732912,154.76,154.71,0.71]
[1762447481504,20.592,154.77,154.72,7.16732912]
[1762447481899,21.292,154.78,154.72,7.16732912]
[1762447482104,21.292,154.78,154.69,22.62589694]
[1762447482105,0.7,154.83,154.76,7.16732912]
[1762447482307,0.7,154.83,154.77,7.16732912]
[1762447482611,7.16732912,154.82,154.76,7.16732912]
[1762447482812,0.7,154.86,154.77,7.16732912]
[1762447483116,7.16732912,154.84,154.78,7.16732912]
[1762447483310,0.7,154.85,154.79,7.16732912]
[1762447483496,12.02529562,154.85,154.77,23.32382531]
[1762447483700,7.16732912,154.84,154.79,7.16732912]
[1762447483918,7.16732912,154.86,154.81,7.16732912]
[1762447484093,11.32798951,154.87,154.81,7.16732912]
[1762447484295,4.16066039,154.86,154.82,4.56265497]
[1762447484514,4.56265497,154.87,154.82,4.56265497]
[1762447484714,5.26265497,154.86,154.8,5.27265497]
[1762447484887,8.72331536,154.86,154.81,6.45953103]